[Event "SS Manhem Chess Week 2019 GM and IM tournaments"]
[Site "Molnlycke kulturhus, Biblioteksgatan 2, Molnlycke, Sweden"]
[Date "2019.08.12"]
[Round "4.8"]
[White "Hill, Alistair"]
[Black "Rydstrom, Tom"]
[Result "1-0"]
[TimeControl "90 minutes for 40 moves + 30 minutes for the rest of the game + 30 seconds per move from move one."]
[BlackTitle "FM"]
[WhiteFideId "432407"]
[BlackFideId "1714830"]
[WhiteElo "2224"]
[BlackElo "2314"]

1. g3 {[%clk 01:30:56]} {[%emt 00:00:04]} e5 {[%clk 01:28:40]} {[%emt
00:02:21]} 2. c4 {[%clk 01:30:34]} {[%emt 00:00:52]} Nc6 {[%clk 01:27:50]}
{[%emt 00:01:20]} 3. Nc3 {[%clk 01:30:28]} {[%emt 00:00:36]} Bc5 {[%clk
01:27:23]} {[%emt 00:00:57]} 4. Bg2 {[%clk 01:28:57]} {[%emt 00:02:00]} a6
{[%clk 01:27:07]} {[%emt 00:00:46]} 5. e3 {[%clk 01:28:04]} {[%emt 00:01:24]}
d6 {[%clk 01:26:30]} {[%emt 00:01:07]} 6. Nge2 {[%clk 01:28:27]} {[%emt
00:00:07]} Ba7 {[%clk 01:26:55]} {[%emt 00:00:05]} 7. d4 {[%clk 01:23:53]}
{[%emt 00:05:04]} Nf6 {[%clk 01:27:07]} {[%emt 00:00:18]} 8. O-O {[%clk
01:22:04]} {[%emt 00:02:18]} O-O {[%clk 01:14:39]} {[%emt 00:12:59]} 9. b3
{[%clk 01:19:27]} {[%emt 00:03:07]} Re8 {[%clk 01:12:29]} {[%emt 00:02:39]} 10.
Bb2 {[%clk 01:12:34]} {[%emt 00:07:23]} Bf5 {[%clk 01:11:06]} {[%emt 00:01:53]}
11. Nd5 {[%clk 01:05:21]} {[%emt 00:07:43]} e4 {[%clk 00:54:46]} {[%emt
00:16:50]} 12. Nec3 {[%clk 00:58:52]} {[%emt 00:06:59]} Nxd5 {[%clk 00:43:23]}
{[%emt 00:33:34]} 13. Nxd5 {[%clk 00:58:56]} {[%emt 00:00:26]} Ne7 {[%clk
00:40:56]} {[%emt 00:02:57]} 14. Qh5 {[%clk 00:37:30]} {[%emt 00:21:56]} Bg6
{[%clk 00:38:36]} {[%emt 00:02:51]} 15. Nxe7+ {[%clk 00:37:54]} {[%emt
00:00:06]} Qxe7 {[%clk 00:38:51]} {[%emt 00:00:15]} 16. Qa5 {[%clk 00:38:16]}
{[%emt 00:00:08]} Bb6 {[%clk 00:34:19]} {[%emt 00:05:02]} 17. Qc3 {[%clk
00:38:10]} {[%emt 00:00:36]} d5 {[%clk 00:33:35]} {[%emt 00:01:15]} 18. c5
{[%clk 00:37:08]} {[%emt 00:01:32]} Ba7 {[%clk 00:34:04]} {[%emt 00:00:02]} 19.
c6 {[%clk 00:37:28]} {[%emt 00:00:10]} b5 {[%clk 00:34:22]} {[%emt 00:00:12]}
20. b4 {[%clk 00:29:29]} {[%emt 00:08:28]} Bb6 {[%clk 00:27:25]} {[%emt
00:07:27]} 21. a4 {[%clk 00:29:13]} {[%emt 00:00:46]} h5 {[%clk 00:27:39]}
{[%emt 00:00:16]} 22. axb5 {[%clk 00:24:42]} {[%emt 00:05:02]} axb5 {[%clk
00:28:04]} {[%emt 00:00:05]} 23. Rxa8 {[%clk 00:25:08]} {[%emt 00:00:04]} Rxa8
{[%clk 00:28:31]} {[%emt 00:00:03]} 24. Ra1 {[%clk 00:25:33]} {[%emt 00:00:04]}
Rd8 {[%clk 00:15:53]} {[%emt 00:13:08]} 25. Bf1 {[%clk 00:25:33]} {[%emt
00:00:31]} h4 {[%clk 00:16:08]} {[%emt 00:00:15]} 26. Bxb5 {[%clk 00:25:55]}
{[%emt 00:00:07]} Bh5 {[%clk 00:10:34]} {[%emt 00:06:05]} 27. Bf1 {[%clk
00:22:57]} {[%emt 00:03:28]} hxg3 {[%clk 00:06:40]} {[%emt 00:04:25]} 28. fxg3
{[%clk 00:22:34]} {[%emt 00:00:52]} Bg4 {[%clk 00:05:54]} {[%emt 00:01:15]} 29.
Ba3 {[%clk 00:19:17]} {[%emt 00:03:48]} Qg5 {[%clk 00:06:12]} {[%emt 00:00:12]}
30. Ra2 {[%clk 00:18:21]} {[%emt 00:01:26]} Ra8 {[%clk 00:02:05]} {[%emt
00:04:36]} 31. Rf2 {[%clk 00:17:57]} {[%emt 00:00:54]} Qh6 {[%clk 00:02:19]}
{[%emt 00:00:17]} 32. Qc1 {[%clk 00:09:21]} {[%emt 00:09:06]} Bf3 {[%clk
00:02:31]} {[%emt 00:00:19]} 33. b5 {[%clk 00:05:20]} {[%emt 00:04:32]} Bg4
{[%clk 00:00:38]} {[%emt 00:02:22]} 34. Be2 {[%clk 00:03:40]} {[%emt 00:02:10]}
Bh3 {[%clk 00:00:59]} {[%emt 00:00:09]} 35. Bf1 {[%clk 00:03:54]} {[%emt
00:00:16]} Bg4 {[%clk 00:01:20]} {[%emt 00:00:09]} 36. Bg2 {[%clk 00:02:17]}
{[%emt 00:02:06]} Ra4 {[%clk 00:00:33]} {[%emt 00:01:18]} 37. Bf1 {[%clk
00:00:38]} {[%emt 00:02:09]} Bf3 {[%clk 00:00:45]} {[%emt 00:00:18]} 38. Qc3
{[%clk 00:00:46]} {[%emt 00:00:23]} Ra8 {[%clk 00:00:54]} {[%emt 00:00:21]} 39.
Be2 {[%clk 00:00:41]} {[%emt 00:00:34]} Ba5 {[%clk 00:01:05]} {[%emt 00:00:20]}
40. Qc1 {[%clk 00:00:48]} {[%emt 00:00:23]} Be1 {[%clk 00:00:51]} {[%emt
00:00:44]} 41. Qxe1 {[%clk 00:24:40]} {[%emt 00:06:37]} Bxe2 {[%clk 00:27:42]}
{[%emt 00:03:39]} 42. Qxe2 {[%clk 00:21:09]} {[%emt 00:04:01]} Rxa3 {[%clk
00:28:09]} {[%emt 00:00:04]} 43. Qg4 {[%clk 00:14:47]} {[%emt 00:06:52]} Qe6
{[%clk 00:06:21]} {[%emt 00:22:18]} 44. Qf4 {[%clk 00:14:33]} {[%emt 00:00:43]}
Qe7 {[%clk 00:05:50]} {[%emt 00:01:02]} 45. b6 {[%clk 00:11:41]} {[%emt
00:03:22]} cxb6 {[%clk 00:06:14]} {[%emt 00:00:07]} 46. Qb8+ {[%clk 00:12:05]}
{[%emt 00:00:06]} Qf8 {[%clk 00:06:40]} {[%emt 00:00:04]} 47. c7 {[%clk
00:11:48]} {[%emt 00:00:46]} Ra8 {[%clk 00:07:07]} {[%emt 00:00:04]} 48. Qxb6
{[%clk 00:12:13]} {[%emt 00:00:05]} Rc8 {[%clk 00:05:36]} {[%emt 00:02:00]} 49.
Qb7 {[%clk 00:10:47]} {[%emt 00:01:56]} Qe8 {[%clk 00:06:02]} {[%emt 00:00:04]}
50. Rb2 {[%clk 00:04:47]} {[%emt 00:06:30]} Kh7 {[%clk 00:06:13]} {[%emt
00:00:18]} 51. Rb5 {[%clk 00:04:48]} {[%emt 00:00:29]} Qe6 {[%clk 00:04:45]}
{[%emt 00:01:59]} 52. Rc5 {[%clk 00:04:26]} {[%emt 00:00:52]} Qg4 {[%clk
00:04:54]} {[%emt 00:00:20]} 53. Qxd5 {[%clk 00:04:05]} {[%emt 00:00:51]} Qd1+
{[%clk 00:04:46]} {[%emt 00:00:38]} 54. Kg2 {[%clk 00:04:31]} {[%emt 00:00:04]}
Qf3+ {[%clk 00:04:54]} {[%emt 00:00:23]} 55. Kh3 {[%clk 00:04:55]} {[%emt
00:00:05]} g6 {[%clk 00:03:50]} {[%emt 00:01:35]} 56. Qe5 {[%clk 00:04:29]}
{[%emt 00:00:55]} Qf1+ {[%clk 00:02:19]} {[%emt 00:02:00]} 57. Kh4 {[%clk
00:04:47]} {[%emt 00:00:12]} f6 {[%clk 00:02:43]} {[%emt 00:00:07]} 58. Qe6
{[%clk 00:03:35]} {[%emt 00:01:42]} Kh6 {[%clk 00:02:30]} {[%emt 00:00:43]} 59.
Rh5+ {[%clk 00:03:28]} {[%emt 00:00:37]} gxh5 {[%clk 00:02:47]} {[%emt
00:00:14]} 60. Qxc8 {[%emt 00:01:22]} 1-0

[Event "SS Manhem Chess Week 2019 GM and IM tournaments"]
[Site "Molnlycke kulturhus, Biblioteksgatan 2, Molnlycke, Sweden"]
[Date "2019.08.12"]
[Round "4.9"]
[White "Malmstig, Erik"]
[Black "Pham, Bich Ngoc"]
[Result "0-1"]
[TimeControl "90 minutes for 40 moves + 30 minutes for the rest of the game + 30 seconds per move from move one."]
[WhiteTitle "FM"]
[BlackTitle "WIM"]
[WhiteFideId "1702866"]
[BlackFideId "12401285"]
[WhiteElo "2335"]
[BlackElo "2176"]

1. d4 {[%clk 01:30:58]} {[%emt 00:00:02]} f5 {[%clk 01:30:53]} {[%emt
00:00:07]} 2. c4 {[%clk 01:31:19]} {[%emt 00:00:09]} Nf6 {[%clk 01:31:19]}
{[%emt 00:00:05]} 3. Nc3 {[%clk 01:31:35]} {[%emt 00:00:14]} g6 {[%clk
01:31:43]} {[%emt 00:00:07]} 4. e3 {[%clk 01:31:47]} {[%emt 00:00:17]} Bg7
{[%clk 01:32:04]} {[%emt 00:00:08]} 5. Bd3 {[%clk 01:32:10]} {[%emt 00:00:08]}
d6 {[%clk 01:32:11]} {[%emt 00:00:24]} 6. Nge2 {[%clk 01:32:19]} {[%emt
00:00:20]} e5 {[%clk 01:31:12]} {[%emt 00:01:29]} 7. f3 {[%clk 01:32:30]}
{[%emt 00:00:19]} Be6 {[%clk 01:30:14]} {[%emt 00:01:28]} 8. Qc2 {[%clk
01:32:09]} {[%emt 00:00:48]} c6 {[%clk 01:28:13]} {[%emt 00:02:34]} 9. Bd2
{[%clk 01:31:56]} {[%emt 00:00:43]} Nbd7 {[%clk 01:27:07]} {[%emt 00:01:36]} 10.
O-O {[%clk 01:31:39]} {[%emt 00:00:46]} O-O {[%clk 01:27:12]} {[%emt 00:00:26]}
11. b4 {[%clk 01:31:42]} {[%emt 00:00:27]} Qe7 {[%clk 01:24:41]} {[%emt
00:03:01]} 12. Rac1 {[%clk 01:19:39]} {[%emt 00:12:33]} Bf7 {[%clk 01:18:08]}
{[%emt 00:07:02]} 13. Ng3 {[%clk 01:14:09]} {[%emt 00:06:00]} Rae8 {[%clk
01:17:17]} {[%emt 00:01:22]} 14. Na4 {[%clk 01:06:35]} {[%emt 00:08:05]} d5
{[%clk 01:15:50]} {[%emt 00:01:57]} 15. c5 {[%clk 01:02:28]} {[%emt 00:04:37]}
e4 {[%clk 01:13:23]} {[%emt 00:02:56]} 16. fxe4 {[%clk 01:01:29]} {[%emt
00:01:29]} dxe4 {[%clk 01:13:26]} {[%emt 00:00:27]} 17. Bc4 {[%clk 00:59:17]}
{[%emt 00:02:42]} Nd5 {[%clk 01:09:58]} {[%emt 00:03:58]} 18. Ne2 {[%clk
00:54:30]} {[%emt 00:05:18]} N7f6 {[%clk 00:57:05]} {[%emt 00:33:02]} 19. Qb3
{[%clk 00:48:24]} {[%emt 00:06:35]} Bh6 {[%clk 00:54:21]} {[%emt 00:03:15]} 20.
h3 {[%clk 00:43:02]} {[%emt 00:05:51]} Nh5 {[%clk 00:52:31]} {[%emt 00:02:20]}
21. Rce1 {[%clk 00:41:27]} {[%emt 00:02:05]} Nxe3 {[%clk 00:50:08]} {[%emt
00:02:53]} 22. Bxf7+ {[%clk 00:25:04]} {[%emt 00:16:53]} Qxf7 {[%clk 00:50:24]}
{[%emt 00:00:14]} 23. Nec3 {[%clk 00:25:11]} {[%emt 00:00:22]} Qxb3 {[%clk
00:49:07]} {[%emt 00:01:49]} 24. axb3 {[%clk 00:25:35]} {[%emt 00:00:06]} Nxf1
{[%clk 00:48:22]} {[%emt 00:01:14]} 25. Bxh6 {[%clk 00:25:47]} {[%emt
00:00:18]} Nfg3 {[%clk 00:48:43]} {[%emt 00:00:09]} 26. Bxf8 {[%clk 00:25:24]}
{[%emt 00:00:54]} Kxf8 {[%clk 00:49:04]} {[%emt 00:00:08]} 27. d5 {[%clk
00:25:03]} {[%emt 00:00:51]} Nf4 {[%clk 00:39:22]} {[%emt 00:10:13]} 28. dxc6
{[%clk 00:21:43]} {[%emt 00:03:50]} bxc6 {[%clk 00:39:15]} {[%emt 00:00:36]} 29.
Re3 {[%clk 00:17:53]} {[%emt 00:04:20]} Ngh5 {[%clk 00:39:38]} {[%emt
00:00:07]} 30. b5 {[%clk 00:17:55]} {[%emt 00:00:28]} cxb5 {[%clk 00:35:40]}
{[%emt 00:04:28]} 31. Nxb5 {[%clk 00:17:59]} {[%emt 00:00:26]} Nd3 {[%clk
00:30:04]} {[%emt 00:06:05]} 32. c6 {[%clk 00:05:13]} {[%emt 00:13:16]} f4
{[%clk 00:24:56]} {[%emt 00:05:38]} 33. Rxd3 {[%clk 00:04:00]} {[%emt
00:01:43]} exd3 {[%clk 00:25:17]} {[%emt 00:00:09]} 34. Nxa7 {[%clk 00:04:22]}
{[%emt 00:00:08]} d2 {[%clk 00:09:09]} {[%emt 00:16:37]} 35. Nb2 {[%clk
00:04:31]} {[%emt 00:00:22]} Re1+ {[%clk 00:08:35]} {[%emt 00:01:04]} 36. Kf2
{[%clk 00:04:50]} {[%emt 00:00:11]} Ng3 {[%clk 00:08:59]} {[%emt 00:00:06]} 37.
Kf3 {[%clk 00:05:01]} {[%emt 00:00:19]} Rf1+ {[%clk 00:09:10]} {[%emt
00:00:19]} 38. Kg4 {[%clk 00:05:15]} {[%emt 00:00:15]} h5+ {[%clk 00:09:25]}
{[%emt 00:00:16]} 39. Kg5 {[%clk 00:05:16]} {[%emt 00:00:29]} Kg7 {[%clk
00:09:41]} {[%emt 00:00:14]} 40. c7 {[%clk 00:04:16]} {[%emt 00:01:30]} Ne4+
{[%clk 00:10:02]} {[%emt 00:00:08]} 41. Kh4 {[%clk 00:04:40]} {[%emt 00:00:06]}
Kh6 {[%clk 00:10:18]} {[%emt 00:00:15]} 42. c8=Q {[%clk 00:05:02]} {[%emt
00:00:08]} g5# {[%clk 00:10:41]} {[%emt 00:00:06]} 0-1

[Event "SS Manhem Chess Week 2019 GM and IM tournaments"]
[Site "Molnlycke kulturhus, Biblioteksgatan 2, Molnlycke, Sweden"]
[Date "2019.08.12"]
[Round "4.10"]
[White "Jacobsen, Mikkel Manosri"]
[Black "Renman, Nils-Gustaf"]
[Result "1-0"]
[TimeControl "90 minutes for 40 moves + 30 minutes for the rest of the game + 30 seconds per move from move one."]
[WhiteTitle "FM"]
[BlackTitle "IM"]
[WhiteFideId "1444514"]
[BlackFideId "1700367"]
[WhiteElo "2269"]
[BlackElo "2346"]

1. Nf3 {[%clk 01:30:55]} {[%emt 00:00:03]} d5 {[%clk 01:30:16]} {[%emt
00:00:46]} 2. e3 {[%clk 01:31:21]} {[%emt 00:00:04]} Nf6 {[%clk 01:28:48]}
{[%emt 00:01:58]} 3. c4 {[%clk 01:31:45]} {[%emt 00:00:05]} c6 {[%clk
01:28:53]} {[%emt 00:00:26]} 4. Nc3 {[%clk 01:32:01]} {[%emt 00:00:14]} e6
{[%clk 01:29:03]} {[%emt 00:00:20]} 5. b3 {[%clk 01:31:17]} {[%emt 00:01:14]}
Nbd7 {[%clk 01:29:11]} {[%emt 00:00:22]} 6. Bb2 {[%clk 01:31:26]} {[%emt
00:00:21]} Bd6 {[%clk 01:28:10]} {[%emt 00:01:31]} 7. d4 {[%clk 01:28:46]}
{[%emt 00:03:10]} O-O {[%clk 01:23:35]} {[%emt 00:05:06]} 8. Qc2 {[%clk
01:28:34]} {[%emt 00:00:42]} Qe7 {[%clk 01:12:21]} {[%emt 00:11:44]} 9. Be2
{[%clk 01:14:15]} {[%emt 00:14:48]} dxc4 {[%clk 01:09:00]} {[%emt 00:03:52]} 10.
bxc4 {[%clk 01:14:42]} {[%emt 00:00:03]} e5 {[%clk 01:09:21]} {[%emt 00:00:09]}
11. O-O {[%clk 01:14:54]} {[%emt 00:00:18]} Re8 {[%clk 01:03:55]} {[%emt
00:05:57]} 12. Rfe1 {[%clk 01:10:16]} {[%emt 00:05:07]} e4 {[%clk 01:02:11]}
{[%emt 00:02:15]} 13. Nd2 {[%clk 01:09:57]} {[%emt 00:00:49]} Nf8 {[%clk
01:02:32]} {[%emt 00:00:09]} 14. f3 {[%clk 01:07:23]} {[%emt 00:03:04]} exf3
{[%clk 00:53:46]} {[%emt 00:09:16]} 15. Bxf3 {[%clk 01:07:50]} {[%emt
00:00:03]} Ng4 {[%clk 00:42:28]} {[%emt 00:32:47]} 16. Nf1 {[%clk 01:08:13]}
{[%emt 00:00:06]} Qh4 {[%clk 00:31:33]} {[%emt 00:11:25]} 17. g3 {[%clk
00:56:46]} {[%emt 00:11:57]} Qf6 {[%clk 00:31:58]} {[%emt 00:00:05]} 18. Qg2
{[%clk 00:52:26]} {[%emt 00:04:50]} Bb4 {[%clk 00:30:10]} {[%emt 00:02:18]} 19.
Re2 {[%clk 00:47:59]} {[%emt 00:04:58]} h5 {[%clk 00:23:42]} {[%emt 00:06:57]}
20. Ne4 {[%clk 00:44:48]} {[%emt 00:03:41]} Qg6 {[%clk 00:21:32]} {[%emt
00:02:41]} 21. c5 {[%clk 00:44:52]} {[%emt 00:00:26]} Bf5 {[%clk 00:17:23]}
{[%emt 00:04:39]} 22. Nd6 {[%clk 00:43:52]} {[%emt 00:01:30]} Bd3 {[%clk
00:17:51]} {[%emt 00:00:02]} 23. h3 {[%clk 00:30:52]} {[%emt 00:13:30]} Bxe2
{[%clk 00:16:37]} {[%emt 00:01:44]} 24. Qxe2 {[%clk 00:31:20]} {[%emt
00:00:02]} Nf6 {[%clk 00:11:00]} {[%emt 00:06:08]} 25. Nc4 {[%clk 00:25:48]}
{[%emt 00:06:01]} Nd5 {[%clk 00:09:25]} {[%emt 00:02:06]} 26. Kh2 {[%clk
00:11:36]} {[%emt 00:14:42]} h4 {[%clk 00:07:56]} {[%emt 00:01:59]} 27. a3
{[%clk 00:12:05]} {[%emt 00:00:02]} Bc3 {[%clk 00:06:39]} {[%emt 00:01:47]} 28.
e4 {[%clk 00:10:50]} {[%emt 00:01:45]} Bxb2 {[%clk 00:05:28]} {[%emt 00:01:41]}
29. Qxb2 {[%clk 00:11:18]} {[%emt 00:00:02]} hxg3+ {[%clk 00:04:17]} {[%emt
00:01:41]} 30. Nxg3 {[%clk 00:11:47]} {[%emt 00:00:02]} Nf4 {[%clk 00:04:31]}
{[%emt 00:00:16]} 31. Nd6 {[%clk 00:12:04]} {[%emt 00:00:13]} Qh7 {[%emt
00:02:12]} 32. Bg4 {[%clk 00:11:49]} {[%emt 00:00:44]} Re7 {[%clk 00:02:19]}
{[%emt 00:01:02]} 33. Rf1 {[%clk 00:07:52]} {[%emt 00:04:27]} N8e6 {[%clk
00:02:38]} {[%emt 00:00:11]} 34. Qd2 {[%clk 00:05:56]} {[%emt 00:02:25]} g5
{[%clk 00:01:50]} {[%emt 00:01:17]} 35. Ngf5 {[%clk 00:04:43]} {[%emt
00:01:43]} Rd7 {[%clk 00:02:19]} {[%emt 00:00:02]} 36. d5 {[%clk 00:04:04]}
{[%emt 00:01:09]} cxd5 {[%clk 00:02:05]} {[%emt 00:00:45]} 37. exd5 {[%clk
00:04:32]} {[%emt 00:00:01]} Nxc5 {[%clk 00:02:33]} {[%emt 00:00:02]} 38. Qd4
{[%clk 00:03:37]} {[%emt 00:01:25]} b6 {[%clk 00:02:25]} {[%emt 00:00:38]} 39.
Qf6 {[%clk 00:02:51]} {[%emt 00:01:16]} Qg6 {[%clk 00:01:41]} {[%emt 00:01:13]}
40. Nh6+ {[%clk 00:03:16]} {[%emt 00:00:05]} Kh7 {[%clk 00:02:10]} {[%emt
00:00:02]} 41. Bf5 {[%clk 00:03:39]} {[%emt 00:00:07]} Kxh6 {[%clk 00:00:48]}
{[%emt 00:01:52]} 42. Bxg6 {[%clk 00:03:40]} {[%emt 00:00:30]} fxg6 {[%clk
00:01:02]} {[%emt 00:00:15]} 43. Nf7+ {[%clk 00:02:31]} {[%emt 00:01:39]} Rxf7
{[%clk 00:00:43]} {[%emt 00:00:49]} 44. Qxf7 {[%clk 00:02:59]} {[%emt
00:00:02]} Ncd3 {[%clk 00:30:10]} {[%emt 00:01:03]} 45. h4 {[%clk 00:30:34]}
{[%emt 00:02:55]} Rc8 {[%clk 00:29:57]} {[%emt 00:00:43]} 46. hxg5+ {[%clk
00:30:09]} {[%emt 00:00:56]} Kxg5 {[%clk 00:30:22]} {[%emt 00:00:03]} 47. Qe7+
{[%clk 00:30:35]} {[%emt 00:00:04]} Kh5 {[%clk 00:30:10]} {[%emt 00:00:42]} 48.
Kg3 {[%clk 00:30:51]} {[%emt 00:00:14]} 1-0

[Event "SS Manhem Chess Week 2019 GM and IM tournaments"]
[Site "Molnlycke kulturhus, Biblioteksgatan 2, Molnlycke, Sweden"]
[Date "2019.08.13"]
[Round "5.2"]
[White "Ahlander, Bjorn"]
[Black "Urkedal, Frode Olav Olsen"]
[Result "1/2-1/2"]
[TimeControl "90 minutes for 40 moves + 30 minutes for the rest of the game + 30 seconds per move from move one."]
[WhiteTitle "IM"]
[BlackTitle "GM"]
[WhiteFideId "1700251"]
[BlackFideId "1506102"]
[WhiteElo "2390"]
[BlackElo "2566"]

1. Nf3 {[%clk 01:30:56]} {[%emt 00:00:02]} Nf6 {[%clk 01:30:51]} {[%emt
00:00:10]} 2. c4 {[%clk 01:31:20]} {[%emt 00:00:05]} e6 {[%clk 01:30:30]}
{[%emt 00:00:51]} 3. Nc3 {[%clk 01:31:43]} {[%emt 00:00:07]} d5 {[%clk
01:30:41]} {[%emt 00:00:20]} 4. d4 {[%clk 01:32:04]} {[%emt 00:00:08]} Be7
{[%clk 01:30:44]} {[%emt 00:00:29]} 5. Bg5 {[%clk 01:32:11]} {[%emt 00:00:22]}
h6 {[%clk 01:31:00]} {[%emt 00:00:15]} 6. Bxf6 {[%clk 01:31:38]} {[%emt
00:01:02]} Bxf6 {[%clk 01:31:25]} {[%emt 00:00:06]} 7. e3 {[%clk 01:32:00]}
{[%emt 00:00:07]} O-O {[%clk 01:31:23]} {[%emt 00:00:32]} 8. Rc1 {[%clk
01:32:12]} {[%emt 00:00:18]} c6 {[%clk 01:31:39]} {[%emt 00:00:14]} 9. Bd3
{[%clk 01:31:52]} {[%emt 00:00:50]} Nd7 {[%clk 01:30:30]} {[%emt 00:01:40]} 10.
O-O {[%clk 01:32:04]} {[%emt 00:00:17]} b6 {[%clk 01:21:48]} {[%emt 00:09:13]}
11. cxd5 {[%clk 01:20:20]} {[%emt 00:12:14]} exd5 {[%clk 01:17:48]} {[%emt
00:04:30]} 12. e4 {[%clk 01:19:44]} {[%emt 00:01:05]} dxe4 {[%clk 01:11:51]}
{[%emt 00:06:28]} 13. Nxe4 {[%clk 01:19:33]} {[%emt 00:00:41]} c5 {[%clk
01:09:05]} {[%emt 00:03:16]} 14. Bb5 {[%clk 01:02:53]} {[%emt 00:17:09]} cxd4
{[%clk 01:03:28]} {[%emt 00:06:08]} 15. Nxf6+ {[%clk 01:00:57]} {[%emt
00:02:26]} Nxf6 {[%clk 01:00:27]} {[%emt 00:03:30]} 16. Qxd4 {[%clk 01:01:22]}
{[%emt 00:00:05]} Bb7 {[%clk 00:59:20]} {[%emt 00:01:38]} 17. Bc6 {[%clk
00:59:31]} {[%emt 00:02:20]} Bxc6 {[%clk 00:58:38]} {[%emt 00:01:13]} 18. Rxc6
{[%clk 00:59:40]} {[%emt 00:00:20]} Qxd4 {[%clk 00:57:54]} {[%emt 00:01:14]} 19.
Nxd4 {[%clk 01:00:07]} {[%emt 00:00:03]} Rfd8 {[%clk 00:58:17]} {[%emt
00:00:07]} 20. Rc4 {[%clk 00:40:26]} {[%emt 00:20:10]} Ne4 {[%clk 00:57:15]}
{[%emt 00:01:33]} 21. Nc6 {[%clk 00:39:02]} {[%emt 00:01:53]} Nd2 {[%clk
00:57:38]} {[%emt 00:00:07]} 22. Rc2 {[%clk 00:37:11]} {[%emt 00:02:20]} Nxf1
{[%clk 00:52:40]} {[%emt 00:05:29]} 23. Nxd8 {[%clk 00:37:06]} {[%emt
00:00:35]} Ne3 {[%clk 00:49:18]} {[%emt 00:03:52]} 24. fxe3 {[%clk 00:36:38]}
{[%emt 00:00:58]} Rxd8 {[%clk 00:49:40]} {[%emt 00:00:08]} 25. h4 {[%clk
00:34:11]} {[%emt 00:02:57]} Rd1+ {[%clk 00:44:43]} {[%emt 00:05:28]} 26. Kf2
{[%clk 00:34:25]} {[%emt 00:00:15]} Rb1 {[%clk 00:44:26]} {[%emt 00:00:48]} 27.
Kf3 {[%clk 00:28:28]} {[%emt 00:06:27]} g6 {[%clk 00:40:56]} {[%emt 00:04:01]}
28. b3 {[%clk 00:27:55]} {[%emt 00:01:03]} Ra1 {[%clk 00:38:10]} {[%emt
00:03:16]} 29. a4 {[%clk 00:25:19]} {[%emt 00:03:05]} Rb1 {[%clk 00:37:50]}
{[%emt 00:00:50]} 30. Rc7 {[%clk 00:24:47]} {[%emt 00:01:02]} a6 {[%clk
00:32:27]} {[%emt 00:05:54]} 31. Rc3 {[%clk 00:24:19]} {[%emt 00:00:57]} h5
{[%clk 00:31:15]} {[%emt 00:01:42]} 32. Ke4 {[%clk 00:22:24]} {[%emt 00:02:25]}
b5 {[%clk 00:21:24]} {[%emt 00:10:22]} 33. axb5 {[%clk 00:18:24]} {[%emt
00:04:30]} axb5 {[%clk 00:21:42]} {[%emt 00:00:13]} 34. g3 {[%clk 00:13:41]}
{[%emt 00:05:12]} Kg7 {[%clk 00:15:45]} {[%emt 00:06:28]} 35. Kd4 {[%clk
00:10:38]} {[%emt 00:03:32]} b4 {[%clk 00:14:44]} {[%emt 00:01:32]} 36. Rd3
{[%clk 00:11:04]} {[%emt 00:00:04]} Rc1 {[%clk 00:14:43]} {[%emt 00:00:31]} 37.
Ke4 {[%clk 00:09:56]} {[%emt 00:01:37]} Rg1 {[%clk 00:13:29]} {[%emt 00:01:44]}
38. Kf4 {[%clk 00:08:03]} {[%emt 00:02:22]} Rf1+ {[%clk 00:07:12]} {[%emt
00:06:47]} 39. Ke4 {[%clk 00:06:25]} {[%emt 00:02:08]} Rg1 {[%clk 00:03:31]}
{[%emt 00:04:12]} 40. Kf3 {[%clk 00:04:22]} {[%emt 00:02:32]} Rb1 {[%clk
00:03:46]} {[%emt 00:00:16]} 41. Ke4 {[%clk 00:00:49]} {[%emt 00:04:03]} Kf6
{[%clk 00:01:52]} {[%emt 00:02:24]} 42. Kf4 {[%clk 00:23:32]} {[%emt 00:07:47]}
Rf1+ {[%clk 00:23:54]} {[%emt 00:08:28]} 43. Ke4 {[%clk 00:23:59]} {[%emt
00:00:02]} Ke6 {[%clk 00:24:17]} {[%emt 00:00:07]} 44. Rd4 {[%clk 00:08:05]}
{[%emt 00:16:23]} f5+ {[%clk 00:24:03]} {[%emt 00:00:45]} 45. Kd3 {[%clk
00:08:34]} {[%emt 00:00:01]} Rf3 {[%clk 00:24:12]} {[%emt 00:00:22]} 46. Rxb4
{[%clk 00:08:29]} {[%emt 00:00:35]} Rxg3 {[%clk 00:24:36]} {[%emt 00:00:06]} 47.
Rb6+ {[%clk 00:07:16]} {[%emt 00:01:43]} Kd5 {[%clk 00:22:09]} {[%emt
00:02:57]} 48. Ke2 {[%clk 00:06:57]} {[%emt 00:00:48]} Kc5 {[%clk 00:21:48]}
{[%emt 00:00:52]} 49. Rf6 {[%clk 00:06:46]} {[%emt 00:00:39]} Kb4 {[%clk
00:21:20]} {[%emt 00:00:59]} 50. Rb6+ {[%clk 00:07:09]} {[%emt 00:00:07]} Kc3
{[%clk 00:21:39]} {[%emt 00:00:12]} 51. Kf2 {[%clk 00:06:20]} {[%emt 00:01:18]}
Rg4 {[%clk 00:22:03]} {[%emt 00:00:07]} 52. Kf3 {[%clk 00:06:10]} {[%emt
00:00:40]} Kc2 {[%clk 00:21:37]} {[%emt 00:00:57]} 53. Kf2 {[%clk 00:06:06]}
{[%emt 00:00:33]} Kd2 {[%clk 00:20:13]} {[%emt 00:01:55]} 54. Rd6+ {[%clk
00:06:29]} {[%emt 00:00:07]} Kc3 {[%clk 00:19:19]} {[%emt 00:01:24]} 55. Rb6
{[%clk 00:06:56]} {[%emt 00:00:02]} Kc2 {[%clk 00:19:24]} {[%emt 00:00:24]} 56.
Kf3 {[%clk 00:07:02]} {[%emt 00:00:23]} Kd2 {[%clk 00:19:34]} {[%emt 00:00:21]}
57. Kf2 {[%clk 00:06:27]} {[%emt 00:01:05]} Rxh4 {[%clk 00:18:37]} {[%emt
00:01:28]} 58. Rd6+ {[%clk 00:06:19]} {[%emt 00:00:37]} Kc3 {[%clk 00:18:53]}
{[%emt 00:00:13]} 59. Rxg6 {[%clk 00:06:42]} {[%emt 00:00:06]} Rg4 {[%clk
00:18:52]} {[%emt 00:00:32]} 60. Rf6 {[%clk 00:06:14]} {[%emt 00:00:58]} Rg5
{[%clk 00:18:13]} {[%emt 00:01:09]} 61. Kf3 {[%clk 00:05:39]} {[%emt 00:01:05]}
Kxb3 {[%clk 00:17:59]} {[%emt 00:00:45]} 62. Kf4 {[%clk 00:05:46]} {[%emt
00:00:22]} Rg1 {[%clk 00:18:22]} {[%emt 00:00:08]} 63. Rxf5 {[%clk 00:05:05]}
{[%emt 00:01:10]} Rf1+ {[%clk 00:18:14]} {[%emt 00:00:39]} 1/2-1/2